bitfinex-derivatives/quotes_SOLF0:USTF0_20241222
["timestamp","ask_amount","ask_price","bid_price","bid_amount"]
[1734862910559,2.6784,186.82,186.79,5.0445001]
[1734862910853,2.6784,186.82,186.78,2.6788]
[1734862911058,2.6784,186.82,186.79,2.6787]
[1734862911258,2.6784,186.82,186.75,2.74]
[1734862911458,2.6784,186.82,186.78,2.6788]
[1734862911660,5.9744,186.88,186.79,5.04549713]
[1734862911962,3.2344,186.88,186.8,5.04549713]
[1734862912258,2.6776,186.87,186.8,7.78549713]
[1734862912560,2.6776,186.87,186.81,5.04549713]
[1734862912954,2.6776,186.87,186.82,5.04549713]
[1734862913358,2.6775,186.88,186.84,2.6779]
[1734862913560,2.6775,186.88,186.8,2.74]
[1734862913956,2.6775,186.88,186.81,5.04810489]
[1734862914159,2.6775,186.88,186.84,2.6779]
[1734862916153,2.6775,186.88,186.8,2.74]
[1734862916154,16.6160479,186.93,186.8,2.74]
[1734862916354,2.6778,186.86,186.81,5.04453074]
[1734862916752,2.6778,186.86,186.82,7.72273074]
[1734862917057,2.6778,186.86,186.8,2.74]
[1734862917362,2.6778,186.86,186.81,5.04422815]
[1734862917560,2.6778,186.86,186.82,5.04422815]
[1734862918059,2.6778,186.86,186.8,2.74]
[1734862918262,16.6160479,186.93,186.8,2.74]
[1734862918560,16.6160479,186.93,186.81,5.04372703]
[1734862918759,16.6160479,186.93,186.82,5.04372703]
[1734862918955,16.6160479,186.93,186.83,5.04372703]
[1734862919260,16.6160479,186.93,186.8,2.74]
[1734862919460,2.6777,186.87,186.84,2.678]
[1734862919660,2.6777,186.87,186.81,5.04257174]
[1734862919857,2.6777,186.87,186.8,2.74]
[1734862920660,2.6779,186.86,186.82,2.6782]
[1734862921762,2.6779,186.86,186.8,2.74]
[1734862921763,2.6779,186.86,186.83,2.6782]
[1734862922055,13.8760479,186.9,186.8,2.74]
[1734862922256,13.8760479,186.93,186.86,2.6776]
[1734862922467,3.2998,186.95,186.85,2.74]
[1734862922763,2.6772,186.9,186.85,2.74]
[1734862923360,13.8760479,186.93,186.85,2.74]
[1734862923761,13.8760479,186.93,186.81,7.715]
[1734862923957,2.6778,186.86,186.81,7.715]
[1734862924163,8.67018225,186.9,186.81,4.4035]
[1734862924363,8.67018225,186.9,186.81,2.74]
[1734862924563,2.6779,186.85,186.81,5.4183]
[1734862927763,8.67018225,186.87,186.78,2.6789]
[1734862928260,2.6784,186.82,186.79,5.04493395]
[1734862928466,8.67018225,186.84,186.79,5.04493395]
[1734862928766,8.67018225,186.84,186.76,2.74]
[1734862929064,8.67018225,186.84,186.77,7.72595426]
[1734862929258,8.67018225,186.84,186.78,5.04695426]
[1734862929663,8.67018225,186.84,186.74,2.6794]
[1734862929859,8.67018225,186.81,186.75,5.04976805]
[1734862930261,11.41018225,186.81,186.69,3.2011]
[1734862930456,8.67018225,186.75,186.66,2.74]
[1734862930765,2.6799,186.72,186.7,5.05227325]
[1734862930961,8.67018225,186.75,186.67,5.05227325]
[1734862931265,2.74,186.78,186.68,5.05227325]
[1734862931465,2.74,186.83,186.69,8.67018225]
[1734862931666,8.67018225,186.82,186.69,13.7224555]
[1734862931865,8.67018225,186.82,186.7,5.05227325]
[1734862932069,8.67018225,186.82,186.71,2.74]
[1734862932262,8.67018225,186.82,186.72,7.73187325]
[1734862932665,8.67018225,186.82,186.73,5.05227325]
[1734862932863,8.67018225,186.82,186.72,2.6796]
[1734862932864,8.67018225,186.79,186.71,2.6799]
[1734862933266,8.67018225,186.79,186.72,5.05629187]
[1734862933464,2.679,186.78,186.73,5.05629187]
[1734862933659,8.67018225,186.79,186.73,5.05629187]
[1734862933866,8.67018225,186.79,186.71,2.6799]
[1734862933867,8.67018225,186.79,186.72,2.6797]
[1734862934267,2.6792,186.77,186.72,2.6797]
[1734862934466,2.6792,186.77,186.73,5.05858341]
[1734862934667,2.6792,186.77,186.72,2.6797]
[1734862934968,2.74,186.84,186.7,2.74]
[1734862935168,8.67018225,186.83,186.72,8.67018225]
[1734862935369,8.67018225,186.83,186.73,5.05836541]
[1734862935764,8.67018225,186.83,186.74,5.05836541]
[1734862936162,8.67018225,186.8,186.75,5.05836541]
[1734862936468,2.6791,186.77,186.72,2.6797]
[1734862936861,2.6789,186.78,186.73,5.06078824]
[1734862937065,2.6789,186.78,186.74,5.06078824]
[1734862937264,8.67018225,186.81,186.74,5.06078824]
[1734862937466,8.67018225,186.81,186.75,5.06078824]
[1734862937666,2.6789,186.78,186.75,5.06078824]
[1734862937867,2.6789,186.78,186.76,5.06078824]
[1734862938064,8.67018225,186.84,186.76,5.06078824]
[1734862938269,2.6783,186.82,186.75,2.6792]
[1734862938471,2.6783,186.82,186.75,2.74]
[1734862938969,2.6783,186.82,186.76,5.05975476]
[1734862939272,2.6783,186.82,186.77,7.73865476]
[1734862939762,2.6785,186.81,186.77,2.6789]
[1734862940477,2.6783,186.82,186.78,5.06124282]
[1734862940970,2.6783,186.82,186.78,2.6789]
[1734862941472,2.6783,186.82,186.79,5.0609368]
[1734862942867,2.6783,186.82,186.78,2.6789]
[1734862943769,1.6663,186.91,186.75,2.74]
[1734862943973,8.67018225,186.88,186.75,11.41018225]
[1734862944172,8.67018225,186.88,186.76,5.06155075]
[1734862944678,2.6776,186.87,186.77,5.06155075]
[1734862944869,3.2575,186.92,186.78,8.67018225]
[1734862945071,2.6772,186.9,186.82,2.6782]
[1734862945266,2.6772,186.9,186.82,2.74]
[1734862945474,2.6772,186.9,186.83,5.06155075]
[1734862945871,2.6772,186.9,186.84,5.06048968]
[1734862946272,2.6772,186.9,186.86,2.6776]
[1734862946474,2.6772,186.9,186.82,2.74]
[1734862946677,2.677,186.92,186.82,2.74]
[1734862946980,2.677,186.92,186.83,5.05971953]
[1734862947176,8.67018225,186.94,186.84,5.05971953]
[1734862947376,8.67018225,186.94,186.85,5.05971953]
[1734862947778,2.6769,186.92,186.88,2.6775]
[1734862949871,8.67018225,186.94,186.82,2.74]
[1734862950066,4.53210519,186.98,186.84,8.67018225]
[1734862950474,4.53210519,186.98,186.87,8.67018225]
[1734862950775,4.53210519,186.98,186.88,11.06921592]
[1734862950980,8.67018225,186.96,186.89,5.06111592]
[1734862951179,8.67018225,186.96,186.92,2.6768]
[1734862951679,11.34648225,186.96,186.92,2.6768]
[1734862951979,11.34648225,186.96,186.93,5.0516979]
[1734862952184,8.67018225,186.96,186.94,5.0516979]
[1734862952477,8.67018225,186.96,186.93,2.6767]
[1734862953179,8.67018225,186.96,186.88,6.0081]
[1734862953383,4.53210519,186.98,186.89,6.28491341]
[1734862953674,4.53210519,186.98,186.9,9.66348579]
[1734862953878,8.67018225,186.96,186.91,4.62081341]
[1734862954080,8.67018225,186.96,186.92,9.66348579]
[1734862954275,8.67018225,186.96,186.92,5.04267238]
[1734862954475,8.67018225,186.96,186.93,5.04267238]
[1734862954779,8.67018225,186.96,186.89,1.6641]
[1734862954980,8.67018225,186.96,186.9,4.61581015]
[1734862955182,4.53210519,186.98,186.91,4.61581015]
[1734862955480,4.53210519,186.98,186.93,2.6767]
[1734862955481,11.34638225,186.97,186.93,2.6767]
[1734862955685,2.6762,186.97,186.93,2.6767]
[1734862955879,13.20228744,186.98,186.94,5.04046003]
[1734862956181,4.53210519,186.98,186.93,2.6767]
[1734862956375,8.67018225,186.97,186.93,2.6767]
[1734862956777,8.67018225,186.97,186.94,5.18202848]
[1734862957080,8.67018225,186.97,186.93,2.6767]
[1734862957271,4.53210519,186.98,186.93,2.6767]
[1734862957470,7.20820519,186.98,186.93,2.6767]
[1734862957874,8.67018225,186.96,186.92,2.6769]
[1734862958382,8.67018225,186.96,186.93,5.17893713]
[1734862958580,8.67018225,186.96,186.92,2.6769]
[1734862959178,8.67018225,186.96,186.93,5.17763647]
[1734862959576,11.34658225,186.96,186.92,2.6769]
[1734862959982,11.34658225,186.96,186.93,5.1758773]
[1734862960383,11.34658225,186.96,186.92,2.6769]
[1734862960585,8.67018225,186.96,186.9,4.60502457]
[1734862960782,8.67018225,186.96,186.91,5.17474183]
[1734862960982,8.67018225,186.96,186.92,5.17474183]
[1734862961389,8.67018225,186.96,186.92,2.6768]
[1734862961680,8.67018225,186.96,186.89,1.6641]
[1734862961984,8.67018225,186.93,186.9,5.17377901]
[1734862962385,8.67018225,186.93,186.85,4.60315198]
[1734862962684,8.67018225,186.93,186.85,9.77947377]
[1734862962982,8.67018225,186.93,186.86,5.17632179]
[1734862963184,8.67018225,186.93,186.87,5.17632179]
[1734862963481,11.34698225,186.93,186.89,2.6773]
[1734862963686,11.34698225,186.93,186.85,5.17570071]
[1734862963887,11.34698225,186.93,186.86,5.17570071]
[1734862964187,2.6768,186.93,186.89,2.6772]
[1734862965586,2.6769,186.92,186.89,2.6772]
[1734862965886,11.41018225,186.96,186.87,2.6775]
[1734862966088,3.4014,186.95,186.87,2.6775]
[1734862966985,2.677,186.92,186.87,2.6775]
[1734862967781,3.4014,186.95,186.86,2.6777]
[1734862967981,8.67018225,186.93,186.84,2.74]
[1734862968483,8.67018225,186.93,186.85,5.18449538]
[1734862968785,8.67018225,186.93,186.86,5.18449538]
[1734862968983,8.67018225,186.93,186.86,7.86219538]
[1734862969189,8.67018225,186.93,186.87,5.18449538]
[1734862969387,2.6773,186.89,186.86,2.6777]
[1734862969590,11.41018225,186.9,186.74,123.49699932]
[1734862969779,11.41018225,186.9,186.75,19.76432934]
[1734862969983,2.678,186.85,186.75,18.63882934]
[1734862970184,8.67018225,186.87,186.79,2.6787]
[1734862970594,2.6782,186.84,186.8,5.18754709]
[1734862970786,2.6782,186.84,186.79,2.6787]
[1734862971091,2.6781,186.84,186.76,2.74]
[1734862971688,2.6781,186.84,186.77,5.19306141]
[1734862972081,2.6781,186.84,186.79,2.6786]
[1734862972288,2.6781,186.84,186.8,5.19306141]
[1734862972690,2.6781,186.84,186.79,2.6786]
[1734862973189,2.6781,186.84,186.8,2.6786]
[1734862973791,8.67018225,186.81,186.69,58.75534293]
[1734862974090,8.67018225,186.77,186.69,58.75534293]
[1734862974391,8.67018225,186.74,186.7,5.20107559]
[1734862974590,11.41018225,186.74,186.7,5.20107559]
[1734862974891,11.41018225,186.74,186.69,58.75534293]
[1734862975092,2.6799,186.72,186.65,2.6806]
[1734862975492,2.6799,186.72,186.66,5.19337281]
[1734862975691,2.6799,186.72,186.66,7.87397281]
[1734862975889,11.41018225,186.74,186.67,5.19337281]
[1734862976091,2.6799,186.71,186.67,5.19337281]
[1734862976291,2.6799,186.71,186.68,5.19337281]
[1734862976496,2.6799,186.71,186.69,5.19337281]
[1734862976697,2.6799,186.71,186.66,2.6806]
[1734862977093,2.6799,186.71,186.67,5.1939283]
[1734862977290,2.6797,186.73,186.68,7.8742283]
[1734862977690,2.74,186.76,186.65,2.74]
[1734862977691,2.74,186.76,186.69,5.1939283]
[1734862977990,100.18056001,186.83,186.69,5.1939283]
[1734862977991,13.89713841,186.8,186.69,5.1939283]
[1734862978193,13.89713841,186.8,186.7,5.1939283]
[1734862978392,13.89713841,186.8,186.71,5.1939283]
[1734862978989,2.6791,186.77,186.72,5.1939283]
[1734862979194,2.6791,186.77,186.73,5.1939283]
[1734862979490,2.6791,186.77,186.7,2.74]
[1734862979694,2.6791,186.77,186.71,5.19043246]
[1734862979900,2.6791,186.77,186.72,2.6797]
[1734862980084,2.6791,186.77,186.72,7.87013246]
[1734862980285,2.6791,186.77,186.73,5.19043246]
[1734862980699,2.6791,186.77,186.74,5.19043246]
[1734862980996,2.6791,186.77,186.72,2.6797]
[1734862981300,2.6791,186.77,186.73,5.19040182]
[1734862981693,13.89713841,186.8,186.7,2.74]
[1734862981888,13.89713841,186.8,186.67,2.74]
[1734862982088,13.89713841,186.8,186.71,5.19171462]
[1734862982594,13.89713841,186.8,186.72,5.19171462]
[1734862982799,2.74,186.85,186.72,7.93171462]
[1734862982998,16.63713841,186.85,186.73,5.19171462]
[1734862983296,2.6786,186.81,186.75,2.6792]
[1734862983493,2.74,186.84,186.75,2.6792]
[1734862983799,2.74,186.84,186.76,5.19171462]
[1734862983997,2.6786,186.81,186.77,5.19171462]
[1734862984199,2.74,186.84,186.72,2.74]
[1734862984200,13.89713841,186.82,186.74,2.6795]
[1734862984598,13.89713841,186.82,186.75,5.18988747]
[1734862984998,2.6789,186.79,186.74,2.6795]
[1734862985188,13.89713841,186.82,186.74,2.6795]
[1734862985806,13.89713841,186.82,186.75,5.18926855]
[1734862986109,13.89713841,186.82,186.72,2.74]
[1734862986406,2.6786,186.81,186.76,5.18995668]
[1734862986603,2.6786,186.81,186.77,5.18995668]
[1734862987107,2.6786,186.81,186.78,5.18995668]
[1734862987305,2.6783,186.82,186.78,7.86885668]
[1734862987506,13.89713841,186.85,186.78,2.6789]
[1734862987701,16.57503841,186.85,186.8,2.6786]
[1734862987907,2.6779,186.85,186.8,2.6786]
[1734862988107,13.89713841,186.88,186.77,2.74]
[1734862988407,2.6775,186.88,186.83,2.6781]
[1734862988804,7.6602,186.9,186.78,4.8532]
[1734862989004,7.6602,186.9,186.79,5.18709759]
[1734862989405,7.6602,186.9,186.8,5.18709759]
[1734862989708,7.6602,186.9,186.81,5.18709759]
[1734862990104,7.6602,186.9,186.82,5.18709759]
[1734862990399,2.6777,186.87,186.82,7.86539759]
[1734862990604,2.6777,186.87,186.82,2.6783]
[1734862992307,2.6777,186.87,186.83,2.6781]
[1734862994005,2.6777,186.87,186.82,2.6783]
[1734862995105,2.6777,186.87,186.8,2.6785]
[1734862995306,2.6777,186.87,186.81,5.19247716]
[1734862995506,2.6777,186.87,186.82,5.19247716]
[1734862995707,2.6779,186.86,186.82,5.19247716]
[1734862995908,13.89713841,186.88,186.81,2.6784]
[1734862996411,2.6778,186.86,186.82,2.6783]
[1734862997205,13.89713841,186.85,186.78,7.5932]
[1734862997410,13.89713841,186.85,186.79,5.19498182]
[1734862997608,13.89713841,186.85,186.78,2.6788]
[1734862997609,2.6782,186.83,186.78,2.6788]
[1734862997806,16.63713841,186.85,186.72,1.5942]
[1734862998104,16.63713841,186.85,186.73,7.9356559]
[1734862998410,13.89713841,186.82,186.74,5.1956559]
[1734862998607,13.89713841,186.82,186.75,5.1956559]
[1734862998808,2.6786,186.8,186.75,7.8748559]
[1734862999008,2.6786,186.8,186.76,5.1956559]
[1734862999212,13.89713841,186.82,186.76,5.1956559]
[1734862999213,2.6785,186.81,186.77,2.679]
[1734862999607,16.63713841,186.85,186.73,2.74]
[1734863000011,2.6782,186.84,186.79,2.6787]
[1734863000413,2.6782,186.84,186.73,2.74]
[1734863000715,2.6778,186.86,186.73,2.74]
[1734863001009,2.6778,186.86,186.74,5.20034895]
[1734863001213,2.6778,186.86,186.81,2.6784]
[1734863001608,2.6778,186.86,186.82,5.20034895]
[1734863001817,2.6779,186.85,186.81,2.6784]
[1734863002615,2.6779,186.85,186.82,5.20036917]
[1734863003214,2.6783,186.83,186.79,2.6787]
[1734863003416,13.89713841,186.85,186.8,5.20201695]
[1734863003912,13.89713841,186.85,186.81,5.20201695]
[1734863004108,13.89713841,186.85,186.73,2.74]
[1734863004513,16.57503841,186.85,186.82,5.20238422]
[1734863005517,16.57503841,186.85,186.81,2.6785]
[1734863005814,2.678,186.84,186.83,5.21007214]
[1734863006015,13.89713841,186.85,186.82,5.21007214]
[1734863006511,2.678,186.84,186.82,5.21007214]
[1734863006815,13.89713841,186.85,186.79,2.6787]
[1734863007010,13.89713841,186.85,186.73,2.74]
[1734863007217,13.89713841,186.85,186.74,5.21658938]
[1734863007407,2.6784,186.82,186.78,2.6788]
[1734863007809,2.6784,186.82,186.79,5.21658938]
[1734863008005,3.2569,186.9,186.79,5.21658938]
[1734863008207,13.89713841,186.87,186.8,5.21658938]
[1734863008717,13.89713841,186.87,186.81,7.89508938]
[1734863009116,13.89713841,186.87,186.82,5.21658938]
[1734863009314,2.678,186.85,186.82,5.21658938]
[1734863009616,13.89713841,186.87,186.83,5.21658938]
[1734863009807,13.89713841,186.84,186.73,2.74]
[1734863010011,2.6784,186.82,186.73,2.74]
[1734863010212,2.6784,186.82,186.78,2.6788]
[1734863011516,16.63713841,186.84,186.79,2.6787]
[1734863011721,2.6782,186.83,186.79,2.6787]
[1734863013021,2.6782,186.83,186.73,2.74]
[1734863013824,5.4181,186.84,186.73,2.74]
[1734863014024,3.2569,186.9,186.73,2.74]
[1734863014225,19.89403841,186.9,186.73,2.74]
[1734863014521,2.6775,186.88,186.84,2.678]
[1734863015520,19.89403841,186.9,186.84,2.678]
[1734863015821,2.6776,186.87,186.84,2.678]
[1734863016215,19.89403841,186.9,186.8,2.74]
[1734863016416,2.6778,186.86,186.82,2.6782]
[1734863016823,2.6778,186.86,186.8,2.74]
[1734863017023,2.6778,186.86,186.83,2.6782]
[1734863017916,19.89403841,186.9,186.83,2.6782]
[1734863017917,2.6776,186.87,186.83,2.6782]
[1734863018116,2.6776,186.87,186.84,2.678]
[1734863018928,16.63713841,186.91,186.86,2.6777]
[1734863019221,3.2106,186.95,186.8,2.74]
[1734863019413,13.89713841,186.93,186.8,2.74]
[1734863019617,13.89713841,186.93,186.88,2.6774]
[1734863019618,2.677,186.92,186.88,2.6774]
[1734863021426,2.677,186.91,186.87,2.6776]
[1734863022024,2.677,186.91,186.88,5.14893079]
[1734863022321,2.677,186.91,186.89,5.14893079]
[1734863022521,2.677,186.91,186.9,5.14893079]
[1734863025426,2.6774,186.89,186.81,1.6255]
[1734863025727,2.6774,186.89,186.81,4.3655]
[1734863026128,2.6774,186.89,186.84,2.6779]
[1734863029430,2.6776,186.87,186.83,2.6781]
[1734863030439,13.89713841,186.87,186.78,4.3475]
[1734863030734,2.6781,186.84,186.8,2.6786]
[1734863031240,13.89713841,186.87,186.79,2.6787]
[1734863031537,13.89713841,186.84,186.79,2.6787]
[1734863031739,13.89713841,186.84,186.77,1.607]
[1734863031926,2.6785,186.81,186.77,2.679]
[1734863032537,16.63713841,186.84,186.74,2.74]
[1734863032731,2.6784,186.82,186.78,2.6789]
[1734863032931,16.63713841,186.84,186.74,2.74]
[1734863033234,13.89713841,186.87,186.74,2.74]
[1734863034139,2.6778,186.86,186.82,2.6783]
[1734863035840,2.678,186.84,186.8,2.6786]
[1734863037037,13.89713841,186.87,186.76,2.74]
[1734863037038,2.6782,186.83,186.76,2.74]
[1734863037444,2.6782,186.83,186.77,5.09558606]
[1734863037738,2.6782,186.83,186.78,5.09558606]
[1734863038038,2.6782,186.83,186.79,5.09558606]
[1734863038339,2.6782,186.83,186.8,5.09558606]
[1734863038738,2.6782,186.83,186.81,5.09558606]
[1734863038935,13.89713841,186.87,186.81,5.09558606]
[1734863039141,2.6782,186.83,186.82,5.09558606]
[1734863039336,16.63713841,186.84,186.72,58.75534293]
[1734863039532,13.89713841,186.81,186.72,58.75534293]
[1734863039730,16.63713841,186.81,186.72,58.75534293]
[1734863040030,2.679,186.78,186.73,2.6795]
[1734863040638,13.89713841,186.81,186.73,2.6795]
[1734863040842,16.63713841,186.81,186.71,4.3384]
[1734863041041,16.63713841,186.81,186.71,2.6799]
[1734863041341,13.89713841,186.78,186.71,2.6799]
[1734863041539,13.89713841,186.78,186.68,58.75534293]
[1734863041742,3.335,186.8,186.66,58.75534293]
[1734863042039,13.89713841,186.72,186.66,58.75534293]
[1734863042244,13.89713841,186.69,186.66,58.75534293]
[1734863042638,2.6805,186.67,186.66,58.75534293]
[1734863042837,13.89713841,186.69,186.6,58.89901366]
[1734863043036,13.89713841,186.65,186.6,58.89901366]
[1734863043443,2.74,186.66,186.6,58.89901366]
[1734863043444,13.89713841,186.68,186.6,58.89901366]
[1734863043642,16.57703841,186.71,186.65,2.6808]
[1734863043845,2.74,186.73,186.61,3.2291]
[1734863044938,13.89713841,186.72,186.61,3.2291]
[1734863045143,13.89713841,186.72,186.61,1.10337565]
[1734863046048,2.6801,186.7,186.65,2.6807]
[1734863046251,13.89713841,186.72,186.65,2.6807]
[1734863046448,13.89713841,186.72,186.61,1.10337565]
[1734863046754,13.89713841,186.72,186.64,2.6809]
[1734863046943,13.89713841,186.72,186.61,1.10337565]
[1734863047246,13.89713841,186.72,186.63,2.681]
[1734863047756,2.6804,186.68,186.63,2.681]
[1734863048052,13.89713841,186.72,186.61,1.10337565]
[1734863048350,2.6799,186.72,186.61,1.10337565]
[1734863048850,2.68,186.71,186.65,2.6807]
[1734863049147,2.68,186.71,186.64,2.74]
[1734863050651,2.6801,186.7,186.64,2.74]
[1734863052450,2.6801,186.7,186.65,2.6808]
[1734863054250,2.6802,186.69,186.65,2.6808]
[1734863055153,13.89713841,186.72,186.61,1.10337565]
[1734863056056,2.6802,186.69,186.64,2.6808]
[1734863056255,13.89713841,186.72,186.61,1.10337565]
[1734863056549,2.74,186.74,186.61,1.10337565]
[1734863056753,2.68,186.71,186.61,1.10337565]
[1734863057262,2.68,186.71,186.67,2.6805]
[1734863058563,2.68,186.71,186.66,2.6806]
[1734863058763,2.68,186.71,186.65,2.74]
[1734863058965,2.74,186.74,186.65,2.74]
[1734863059965,13.89713841,186.72,186.62,2.74]
[1734863060667,2.6803,186.69,186.64,2.6808]
[1734863060862,2.74,186.74,186.64,2.6808]
[1734863061064,13.89713841,186.72,186.61,3.84337565]
[1734863061267,2.6805,186.68,186.61,3.84337565]
[1734863061463,13.89713841,186.72,186.61,3.84337565]
[1734863061670,2.6808,186.66,186.62,2.6812]
[1734863061969,13.89713841,186.72,186.61,3.84337565]
[1734863062468,2.6804,186.68,186.63,2.681]
[1734863064364,2.6804,186.68,186.64,2.6808]
[1734863065863,13.89713841,186.72,186.64,2.6808]
[1734863066167,2.6805,186.67,186.64,2.6808]
[1734863066365,2.6805,186.67,186.61,2.74]
[1734863067367,2.6805,186.67,186.63,2.6809]
[1734863068170,2.6805,186.67,186.61,2.74]
[1734863069070,2.6805,186.67,186.63,2.6809]
[1734863070172,2.6805,186.67,186.61,2.74]
[1734863070367,2.6805,186.67,186.64,2.6809]
[1734863072268,11.36883147,186.69,186.66,2.6806]
[1734863072472,8.68853147,186.72,186.61,2.74]
[1734863073075,2.68,186.71,186.67,2.6804]
[1734863075568,2.6796,186.73,186.66,2.74]
[1734863075773,2.6796,186.73,186.68,2.6802]
[1734863076172,2.6796,186.73,186.66,2.74]
[1734863076473,2.6798,186.72,186.66,2.74]
[1734863077471,2.6798,186.72,186.69,2.6802]
[1734863078073,8.62966178,186.75,186.66,2.74]
[1734863078278,12.40929325,186.75,186.66,2.74]
[1734863079184,8.68853147,186.75,186.66,2.74]
[1734863079368,8.68853147,186.75,186.72,2.6797]
[1734863080568,8.68853147,186.75,186.73,2.6795]
[1734863080767,8.68853147,186.78,186.71,2.74]
[1734863080976,8.68853147,186.78,186.77,2.679]
[1734863081373,2.6787,186.8,186.77,2.679]
[1734863081774,2.6787,186.8,186.76,2.6791]
[1734863084182,11.36723147,186.8,186.76,2.6791]
[1734863085883,8.68853147,186.8,186.71,2.74]
[1734863086084,11.36673147,186.83,186.79,2.6788]
[1734863086283,8.68853147,186.83,186.71,11.42853147]
[1734863086584,2.6783,186.82,186.71,11.42853147]
[1734863087084,2.6783,186.82,186.72,2.74]
[1734863088176,8.68853147,186.83,186.72,2.74]
[1734863088586,8.68853147,186.83,186.79,2.6786]
[1734863089287,11.36673147,186.83,186.8,2.6786]
[1734863090686,11.36673147,186.83,186.79,2.6787]
[1734863091390,11.36673147,186.83,186.8,2.6786]
[1734863092188,8.68853147,186.83,186.8,2.6786]
[1734863093886,4.2623,186.86,186.79,2.74]
[1734863094493,2.6778,186.86,186.79,2.74]
[1734863095191,2.6773,186.9,186.82,2.6782]
[1734863095390,2.6773,186.9,186.79,2.74]
[1734863096084,2.6773,186.9,186.86,2.6777]
[1734863098587,8.68853147,186.91,186.84,2.6779]
[1734863098588,2.6775,186.88,186.84,2.6779]
[1734863098791,8.68853147,186.91,186.84,2.6779]
[1734863099490,2.6775,186.89,186.84,2.6779]
[1734863099687,8.68853147,186.88,186.78,3.209]
[1734863099895,8.68853147,186.85,186.78,1.6332]
[1734863100394,8.68853147,186.85,186.82,2.6783]
[1734863101292,2.6777,186.87,186.82,2.6783]
[1734863101491,11.42853147,186.88,186.82,2.6783]
[1734863102083,11.42853147,186.88,186.78,1.6332]
[1734863102289,8.68853147,186.88,186.78,1.6332]
[1734863102592,2.6776,186.87,186.83,2.6781]
[1734863103592,8.68853147,186.88,186.78,3.2147]
[1734863105195,2.6779,186.86,186.78,3.2147]
[1734863106394,8.68853147,186.88,186.82,2.6783]
[1734863106693,2.678,186.85,186.78,3.2147]
[1734863106893,8.68853147,186.88,186.8,2.6786]
[1734863107096,2.6785,186.81,186.71,8.68853147]
[1734863107294,2.6785,186.81,186.72,2.74]
[1734863107594,2.6788,186.79,186.73,2.74]
[1734863108792,2.6788,186.79,186.75,2.6793]
[1734863112996,2.6789,186.78,186.73,2.74]
[1734863113197,8.68853147,186.8,186.73,2.6796]
[1734863113395,11.40853147,186.8,186.68,8.68853147]
[1734863113595,8.68853147,186.74,186.67,61.63920096]
[1734863113900,8.68853147,186.74,186.67,58.95870096]
[1734863114294,3.1934,186.73,186.65,2.72]
[1734863114988,3.1934,186.73,186.64,58.95870096]
[1734863115296,3.1934,186.73,186.63,2.72]
[1734863115497,2.6801,186.7,186.66,2.6806]
[1734863117099,2.6803,186.69,186.64,2.6808]
[1734863117294,2.6803,186.69,186.62,2.72]
[1734863117993,2.6804,186.68,186.6,2.72]
[1734863118201,3.1934,186.73,186.6,2.72]
[1734863118401,8.68853147,186.72,186.64,2.6808]
[1734863118699,2.6803,186.69,186.64,2.6808]
[1734863119697,2.6804,186.68,186.64,2.6808]
[1734863119997,8.68853147,186.69,186.59,8.68853147]
[1734863120301,8.68853147,186.69,186.62,2.6812]
[1734863120700,2.6806,186.66,186.62,2.6812]
[1734863120901,8.68853147,186.69,186.61,2.6813]
[1734863121399,2.6806,186.66,186.61,2.6812]
[1734863121700,8.68853147,186.69,186.59,8.68853147]
[1734863121901,2.6806,186.67,186.59,11.42853147]
[1734863122801,2.6806,186.67,186.62,2.6812]
[1734863123402,8.68853147,186.69,186.61,2.6813]
[1734863123704,8.68853147,186.66,186.56,10.26973147]
[1734863123904,8.68853147,186.66,186.56,4.3212]
[1734863124104,2.6812,186.62,186.57,2.6818]
[1734863124603,2.6812,186.62,186.56,2.74]
[1734863124905,2.6812,186.62,186.58,2.6817]
[1734863125608,8.68853147,186.63,186.5,4.9613]
[1734863125800,8.68853147,186.6,186.51,2.74]
[1734863126505,2.6817,186.59,186.54,2.6822]